fUSD/lending_fUSD_20260112
["ID","MTS","AMOUNT","RATE_DAILY","PERIOD"]
[401404739,1768186257076,-2277.167351,0.00017965,2]
[401404740,1768186257086,-2277.167351,0.00017965,2]
[401404741,1768186257096,-2277.167351,0.00017965,2]
[401404742,1768186257105,-2277.167351,0.00017965,2]
[401404743,1768186257115,-325.126375,0.00017965,2]
[401404744,1768186257125,-325.126375,0.00017965,2]
[401404745,1768186257135,-325.126375,0.00017965,2]
[401404746,1768186257147,-325.126375,0.00017965,2]
[401404747,1768186257157,-151.0,0.00017965,2]
[401404748,1768186257167,-151.0,0.00017965,2]
[401404749,1768186257177,-151.0,0.00017965,2]
[401404750,1768186257192,-273.411244,0.00017965,2]
[401404751,1768186257202,-487.3351,0.00017965,2]
[401404752,1768186257211,-151.0,0.00017965,2]
[401404753,1768186257221,-291.883143,0.00017965,2]
[401404754,1768186257231,-487.3351,0.00017965,2]
[401404755,1768186257240,-151.0,0.00017965,2]
[401404756,1768186257249,-151.0,0.00017965,2]
[401404757,1768186257259,-151.0,0.00017965,2]
[401404758,1768186257268,-291.883143,0.00017965,2]
[401404759,1768186257278,-487.3351,0.00017965,2]
[401404760,1768186257288,-151.0,0.00017965,2]
[401404761,1768186257298,-151.0,0.00017965,2]
[401404762,1768186257308,-291.883143,0.00017965,2]
[401404763,1768186257319,-487.3351,0.00017965,2]
[401404764,1768186257329,-201.714843,0.00017965,2]
[401404765,1768186257339,-151.0,0.00017965,2]
[401404766,1768186257348,-291.883143,0.00017965,2]
[401404767,1768186257357,-216.61887,0.00017965,2]
[401404768,1768186257367,-151.0,0.00017965,2]
[401404769,1768186257377,-151.0,0.00017965,2]
[401404770,1768186257387,-189.794897,0.00017965,2]
[401404771,1768186257397,-151.0,0.00017965,2]
[401404772,1768186257407,-1767.548746,0.00017965,2]
[401404773,1768186257417,-170.276102,0.00017965,2]
[401404774,1768186257427,-384.478135,0.00017965,2]
[401404775,1768186257440,-1767.548746,0.00017965,2]
[401404776,1768186257450,-1888.793769,0.00017965,2]
[401404777,1768186257460,-151.0,0.00017965,2]
[401404778,1768186257470,-384.478135,0.00017965,2]
[401404779,1768186257480,-151.0,0.00017965,2]
[401404780,1768186257490,-1888.793769,0.00017965,2]
[401404781,1768186257499,-1767.548746,0.00017965,2]
[401404782,1768186257509,-151.0,0.00017965,2]
[401404783,1768186257519,-1767.548746,0.00017965,2]
[401404784,1768186257529,-1888.793769,0.00017965,2]
[401404785,1768186257539,-384.478135,0.00017965,2]
[401404786,1768186257549,-151.0,0.00017965,2]
[401404787,1768186257559,-384.478135,0.00017965,2]
[401404788,1768186257568,-1888.793769,0.00017965,2]
[401404789,1768186257578,-211.871892,0.00017965,2]
[401404790,1768186257588,-151.0,0.00017965,2]
[401404791,1768186257598,-200.139122,0.00017965,2]
[401404792,1768186257608,-151.0,0.00017965,2]
[401404793,1768186257618,-200.139122,0.00017965,2]
[401404794,1768186257628,-202.342044,0.00017965,2]
[401404795,1768186257638,-200.139122,0.00017965,2]
[401404796,1768186257647,-202.342044,0.00017965,2]
[401404797,1768186257657,-200.139122,0.00017965,2]
[401404798,1768186257667,-282.554442,0.00017965,2]
[401404799,1768186257677,-498.39272947,0.00017973,2]
[401404800,1768186257688,-500.0,0.00017973,2]
[401404801,1768186257699,-515.69548792,0.00017973,2]
[401404802,1768186257709,-501.12911319,0.00017973,2]
[401404803,1768186257719,-501.10571804,0.00017973,2]
[401404804,1768186257729,-501.38258594,0.00017973,2]
[401404805,1768186257739,-501.78685961,0.00017973,2]
[401404806,1768186257749,-503.85916191,0.00017973,2]
[401404807,1768186257759,-502.23302881,0.00017973,2]
[401404808,1768186257768,-644.05438872,0.00017973,2]
[401404809,1768186257778,-381.34584895,0.00017973,2]
[401404810,1768186257788,-500.0,0.00017973,2]
[401404811,1768186257797,-502.86808452,0.00017973,2]
[401404812,1768186257807,-500.55153068,0.00017973,2]
[401404813,1768186257817,-500.0,0.00017973,2]
[401404814,1768186257826,-501.47661499,0.00017973,2]
[401404815,1768186257836,-503.67264874,0.00017973,2]
[401404816,1768186257847,-500.0,0.00017973,2]
[401404817,1768186257858,-500.0,0.00017973,2]
[401404818,1768186257868,-151.0,0.00017973,2]
[401404819,1768186257878,-151.0,0.00017973,2]
[401404820,1768186257888,-151.0,0.00017973,2]
[401404821,1768186257897,-151.0,0.00017973,2]
[401404822,1768186257907,-151.0,0.00017973,2]
[401404823,1768186257917,-151.0,0.00017973,2]
[401404824,1768186257926,-151.0,0.00017973,2]
[401404825,1768186257939,-162.447438,0.00017973,2]
[401404826,1768186257948,-151.0,0.00017973,2]
[401404827,1768186257957,-151.0,0.00017973,2]
[401404828,1768186257967,-151.0,0.00017973,2]
[401404829,1768186257976,-151.0,0.00017973,2]
[401404830,1768186257986,-151.0,0.00017973,2]
[401404831,1768186257996,-151.0,0.00017973,2]
[401404832,1768186258006,-1000.0,0.00017973,2]
[401404833,1768186258015,-1000.0,0.00017973,2]
[401404834,1768186258024,-1000.0,0.00017973,2]
[401404835,1768186258034,-1000.0,0.00017973,2]
[401404836,1768186258043,-1000.0,0.00017973,2]
[401404837,1768186258053,-1000.0,0.00017973,2]
[401404838,1768186258064,-1000.0,0.00017973,2]
[401404839,1768186258073,-1000.0,0.00017973,2]
[401404840,1768186258082,-1000.0,0.00017973,2]
[401404841,1768186258092,-1000.0,0.00017973,2]
[401404842,1768186258102,-1000.0,0.00017973,2]
[401404843,1768186258112,-1000.0,0.00017973,2]
[401404844,1768186258121,-1000.0,0.00017973,2]
[401404845,1768186258130,-1000.0,0.00017973,2]
[401404846,1768186258139,-1000.0,0.00017973,2]
[401404847,1768186258151,-1000.0,0.00017973,2]
[401404848,1768186258162,-1000.0,0.00017973,2]
[401404849,1768186258172,-1000.0,0.00017973,2]
[401404850,1768186258182,-1000.0,0.00017973,2]
[401404851,1768186258192,-1000.0,0.00017973,2]
[401404852,1768186258202,-1000.0,0.00017973,2]
[401404853,1768186258211,-330.4587299,0.00017973,2]
[401404854,1768186258221,-2187.74521,0.00017973,2]
[401404855,1768186258231,-2187.74521,0.00017973,2]
[401404856,1768186258241,-2187.74521,0.00017973,2]
[401404857,1768186258252,-2187.74521,0.00017973,2]
[401404858,1768186258262,-153.49935164,0.00017973,2]
[401404859,1768186258272,-5360.36142567,0.00017977,2]
[401404860,1768186258282,-151.0,0.00017977,2]
[401404861,1768186258292,-151.0,0.00017977,2]
[401404862,1768186258302,-151.0,0.00017977,2]
[401404863,1768186258311,-151.0,0.00017977,2]
[401404864,1768186258323,-151.0,0.00017977,2]
[401404865,1768186258333,-151.0,0.00017977,2]
[401404866,1768186258343,-216.579647,0.00017977,2]
[401404867,1768186258354,-207.47149906,0.00017982,2]
[401404868,1768186258363,-310.27,0.00017986,2]
[401404869,1768186258373,-351.7305633,0.0001799,2]
[401404870,1768186258382,-150.0,0.0001799,2]
[401404871,1768186258392,-881.93320068,0.0001799,2]
[401404872,1768186258402,-881.93320068,0.0001799,2]
[401404873,1768186258412,-14299.25708922,0.00017999,2]
[401404874,1768186258422,-1093.40683627,0.00017999,5]
[401404875,1768186258432,-1093.40683627,0.00017999,5]
[401404876,1768186258442,-1093.40683627,0.00017999,5]
[401404877,1768186258451,-1093.40683627,0.00017999,5]
[401404878,1768186258461,-1093.40683627,0.00017999,5]
[401404879,1768186258472,-1093.40683627,0.00017999,5]
[401404880,1768186258482,-1093.40683627,0.00017999,5]
[401404881,1768186258492,-1093.40683627,0.00017999,5]
[401404882,1768186258502,-1093.40683627,0.00017999,5]
[401404883,1768186258511,-162.036793,0.00017999,2]
[401404884,1768186258522,-151.0,0.00017999,2]
[401404885,1768186258533,-151.0,0.00017999,2]
[401404886,1768186258542,-151.0,0.00017999,2]
[401404887,1768186258551,-151.0,0.00017999,2]
[401404888,1768186258562,-151.0,0.00017999,2]
[401404889,1768186258571,-287.398256,0.00017999,2]
[401404890,1768186258581,-151.0,0.00017999,2]
[401404891,1768186258591,-151.0,0.00017999,2]
[401404892,1768186258600,-151.0,0.00017999,2]
[401404893,1768186258609,-151.0,0.00017999,2]
[401404894,1768186258619,-151.0,0.00017999,2]
[401404895,1768186258628,-172.359513,0.00017999,2]
[401404896,1768186258637,-151.0,0.00017999,2]
[401404897,1768186258647,-151.0,0.00017999,2]
[401404898,1768186258657,-309.21289699,0.00017999,2]
[401404899,1768186258666,-300.0,0.00017999,2]
[401404900,1768186258676,-300.0,0.00017999,2]
[401404901,1768186258686,-666.0,0.00017999,2]
[401404902,1768186258696,-300.0,0.00017999,2]
[401404903,1768186258705,-666.0,0.00017999,2]
[401404904,1768186258716,-300.0,0.00017999,2]
[401404905,1768186258726,-265.0,0.00018,2]
[401404906,1768186258736,-150.0,0.00018,2]
[401404907,1768186258747,-200.0,0.00018,2]
[401404908,1768186258756,-213.0,0.00018,2]
[401404909,1768186258766,-194.425,0.00018,2]
[401404910,1768186258776,-250.0,0.00018,2]
[401404911,1768186258785,-226.708,0.00018,2]
[401404912,1768186258795,-211.999,0.00018,2]
[401404913,1768186258804,-157.467,0.00018,2]
[401404914,1768186258814,-250.0,0.00018,2]
[401404915,1768186258824,-190.963,0.00018,2]
[401404916,1768186258833,-163.847,0.00018,2]
[401404917,1768186258843,-212.004,0.00018,2]
[401404918,1768186258853,-250.0,0.00018,2]
[401404919,1768186258862,-169.0,0.00018,2]
[401404920,1768186258872,-229.743,0.00018,2]
[401404921,1768186258882,-152.37123583,0.00018,2]
[401404922,1768186258893,-155.99258278,0.00018,2]
[401404923,1768186258904,-156.71525666,0.00018,2]
[401404924,1768186258915,-154.38953807,0.00018,2]
[401404925,1768186258925,-154.70586823,0.00018,2]
[401404926,1768186258936,-151.45444701,0.00018,2]
[401404927,1768186258945,-155.07098724,0.00018,2]
[401404928,1768186258955,-155.70825827,0.00018,2]
[401404929,1768186258965,-151.66154832,0.00018,2]
[401404930,1768186258976,-207.47149906,0.00018,2]
[401404931,1768186258987,-2667309.37502581,0.00018,2]
[401404932,1768186258998,-2361186.36857335,0.00018,2]
[401404933,1768186260023,-202.342044,0.00017965,2]
[401404934,1768186260037,-595674.82697452,0.00018,2]
[401404935,1768186260052,-671786.19766892,0.00018,2]
[401404936,1768186260069,-11021.28610397,0.00018,2]
[401404937,1768186260084,-2008700.32849416,0.00018,2]
[401404938,1768186260098,-183296.40479911,0.00018,2]
[401404939,1768186260743,-1.7e-07,0.00018,2]
[401404940,1768186261068,-1364.61173486,0.00013525,2]
[401404941,1768186261083,-10677.99635164,0.00013525,2]
[401404942,1768186261095,-800.0,0.000175,6]
[401404943,1768186261108,-151.0,0.00017882,2]
[401404944,1768186261120,-282.554442,0.00017882,2]
[401404945,1768186261133,-151.0,0.00017882,2]
[401404946,1768186261145,-240.795789,0.00017882,2]
[401404947,1768186261156,-282.554442,0.00017882,2]
[401404948,1768186261167,-362.195812,0.00017882,2]
[401404949,1768186261179,-240.795789,0.00017965,2]
[401404950,1768186261195,-151.0,0.00017965,2]
[401404951,1768186261207,-282.554442,0.00017965,2]
[401404952,1768186261218,-151.0,0.00017965,2]
[401404953,1768186261230,-240.795789,0.00017965,2]
[401404954,1768186261240,-282.554442,0.00017965,2]
[401404955,1768186261251,-28533.86442195,0.00018,2]
[401404956,1768186261266,-1124.48083153,0.00018,2]
[401404957,1768186261410,-500.0,0.00013724,2]
[401404958,1768186261422,-467.15,0.00016356,2]
[401404959,1768186261437,-179.28,0.00016356,2]
[401404960,1768186261449,-202.342044,0.00017882,2]
[401404961,1768186261460,-77.00876034,0.00017965,2]
[401404962,1768186261474,-172.99123966,0.00017965,2]
[401404963,1768186261486,-362.195812,0.00017965,2]
[401404964,1768186261498,-606.77281746,0.00018,2]
[401404965,1768186261529,-661.95,0.00017041,2]
[401404966,1768186261543,-240.795789,0.00017882,2]
[401404967,1768186261557,-317.78106429,0.00018,2]
[401404968,1768186261571,-3198.77275587,0.00018,2]
[401404969,1768186261585,-13700.0,0.00018,2]
[401404970,1768186261721,-1422.76511011,0.00018,2]
[401404971,1768186261735,-3026.05476368,0.00018,2]
[401404972,1768186261749,-384.9725004,0.00018,2]
[401404973,1768186262626,-800.0,0.000176,6]
[401404974,1768186262636,-282.554442,0.00017882,2]
[401404975,1768186262647,-543.075801,0.00017882,2]
[401404976,1768186262656,-151.0,0.00017882,2]
[401404977,1768186262666,-349.70041527,0.00017882,2]
[401404978,1768186263573,-300.0,0.00013524,2]
[401404979,1768186271034,250.0,0.00013575,2]
[401404980,1768186290802,500.0,0.00013624,2]
[401404981,1768186290872,500.0,0.00013624,2]
[401404982,1768186290938,381.94452639,0.00013624,2]
[401404983,1768186297812,7768.06547361,0.00013624,2]
[401404984,1768186297840,10000.01,0.00013624,2]
[401404985,1768186297866,10000.01,0.00013624,2]
[401404986,1768186297891,10000.01,0.00013624,2]
[401404987,1768186297917,10000.01,0.00013624,2]
[401404988,1768186297942,10000.01,0.00013624,2]
[401404989,1768186297969,10000.01,0.00013624,2]
[401404990,1768186297995,10000.01,0.00013624,2]
[401404991,1768186298021,10000.01,0.00013624,2]
[401404992,1768186299244,-521.84831812,0.00013624,2]
[401404993,1768186318867,-160.27531011,0.00013525,2]
[401404994,1768186323745,160.27531011,0.00013525,2]
[401404995,1768186328413,-756.187682,0.00013624,2]
[401404996,1768186331513,-424.01788079,0.00013624,2]
[401404997,1768186333976,-277.104718,0.00013624,2]
[401404998,1768186336056,-439.72468989,0.00013624,2]
[401404999,1768186349538,-928.56,0.00013622,2]
[401405000,1768186349601,-8142.89,0.00013624,2]
[401405001,1768186349627,-10000.01,0.00013624,2]
[401405002,1768186349760,-10000.01,0.00013624,2]
[401405003,1768186349872,-10000.01,0.00013624,2]
[401405004,1768186349982,-10000.01,0.00013624,2]
[401405005,1768186350120,-10000.01,0.00013624,2]
[401405006,1768186350228,-10000.01,0.00013624,2]
[401405007,1768186350542,-10000.01,0.00013624,2]
[401405008,1768186350723,-10000.01,0.00013624,2]
[401405009,1768186352682,300.0,0.000139,5]
[401405013,1768186400382,2400.0,0.000139,5]
[401405014,1768186404949,-500.0,0.00013621,2]
[401405015,1768186404984,-300.0,0.00013622,2]
[401405016,1768186405012,-1200.0,0.00013622,2]
[401405017,1768186405043,-150.20979331,0.00013623,2]
[401405018,1768186405083,-500.0,0.00013623,2]
[401405019,1768186405117,-500.0,0.00013623,2]
[401405020,1768186405149,-500.0,0.00013623,2]
[401405021,1768186405180,-500.0,0.00013623,2]
[401405022,1768186405214,-493.48662149,0.00013623,2]
[401405023,1768186405246,-337.01655233,0.00013623,2]
[401405024,1768186405491,-38.58406574,0.00013623,2]
[401405025,1768186405530,-540.11995075,0.00013623,2]
[401405026,1768186405632,-8919.7700985,0.00013624,2]
[401405027,1768186405658,-10000.01,0.00013624,2]
[401405028,1768186405839,-10000.01,0.00013624,2]
[401405029,1768186406031,-10000.01,0.00013624,2]
[401405030,1768186406228,-10000.01,0.00013624,2]
[401405031,1768186406460,-10000.01,0.00013624,2]
[401405032,1768186406641,-10000.01,0.00013624,2]
[401405033,1768186406855,-10000.01,0.00013624,2]
[401405034,1768186416492,-10000.01,0.00013624,2]
[401405035,1768186432528,1000.0,0.000139,5]
[401405036,1768186453293,-300.0,0.00013623,2]
[401405037,1768186453336,-300.0,0.00013623,2]
[401405038,1768186453381,-150.0,0.00013623,2]
[401405039,1768186453424,-300.0,0.00013623,2]
[401405040,1768186453468,-195.0,0.00013623,2]
[401405041,1768186454469,-7510.01,0.00013624,2]
[401405042,1768186454609,-10000.01,0.00013624,2]
[401405043,1768186454630,-10000.01,0.00013624,2]
[401405044,1768186454646,-10000.01,0.00013624,2]
[401405045,1768186454673,-10000.01,0.00013624,2]
[401405046,1768186454699,-10000.01,0.00013624,2]
[401405047,1768186454776,-10000.01,0.00013624,2]
[401405048,1768186454973,-10000.01,0.00013624,2]
[401405049,1768186455144,-10000.01,0.00013624,2]
[401405050,1768186468934,-448.2642268,0.00013525,2]
[401405051,1768186469853,448.2642268,0.00013525,2]
[401405052,1768186479278,-303.69057623,0.00013623,2]
[401405053,1768186481389,-160.46630744,0.00013623,2]
[401405054,1768186483435,-35.84311633,0.00013623,2]
[401405055,1768186483462,-163.59538386,0.00013623,2]
[401405056,1768186488267,-264.77940075,0.00013623,2]
[401405057,1768186493343,-71.62521539,0.00013623,2]
[401405058,1768186493371,-462.60960301,0.00013623,2]
[401405059,1768186495288,-37.39039699,0.00013623,2]
[401405060,1768186495313,-222.23209753,0.00013623,2]
[401405061,1768186497320,-253.77977679,0.00013623,2]
[401405062,1768186501314,-23.98812568,0.00013623,2]
[401405063,1768186501339,-172.32129809,0.00013623,2]
[401405064,1768186503486,-265.35230462,0.00013622,2]
[401405065,1768186504992,-438.83419989,0.00013622,2]
[401405066,1768186507935,1976.450204,7.945e-05,2]
[401405067,1768186511417,-495.81349549,0.00013622,2]
[401405068,1768186511441,-160.49509769,0.00013622,2]
[401405069,1768186513476,-139.50490231,0.00013622,2]
[401405070,1768186513503,-55.49509769,0.00013623,2]
[401405071,1768186515027,-93.0189177,0.00013623,2]
[401405072,1768186515055,-154.99940453,0.00013623,2]
[401405073,1768186516695,-198.55,0.00013623,2]
[401405074,1768186538472,192.0,0.00013487,2]
[401405075,1768186548432,6486.7671156,0.00013525,2]
[401405076,1768186548456,3028.43497361,0.00013525,2]
[401405077,1768186559997,500.0,0.00013524,2]
[401405079,1768186615339,372.50683603,0.00013525,2]
[401405080,1768186623072,1115.84918988,0.00013523,2]
[401405081,1768186626243,372.50683603,0.00013525,2]
[401405082,1768186628910,8139.14713806,0.00013525,2]
[401405083,1768186628935,5812.516539,0.00013525,2]
[401405084,1768186629056,1115.84918987,0.00013524,2]
[401405085,1768186629150,1937.351718,0.00013554,2]
[401405086,1768186634934,1115.84918987,0.00013525,2]
[401405087,1768186705503,18.44336326,0.00013512,2]
[401405088,1768186705524,131.55663674,0.00013512,2]
[401405089,1768186709294,500.0,0.00013523,2]
[401405090,1768186758352,1004.443,0.00013524,2]
[401405091,1768186772708,321.55167153,0.00013525,2]
[401405092,1768186773761,321.55167153,0.00013525,2]
[401405093,1768186804720,5360.36142567,0.00013525,2]
[401405094,1768186852100,2360.54559453,0.0001318,2]
[401405095,1768186852131,5802.53440547,0.0001318,2]
[401405096,1768186860447,500.0,0.00013513,2]
[401405097,1768186884140,1950.1,0.00013107,2]
[401405098,1768186908065,1747.37559453,0.00013524,2]
[401405099,1768186908088,10000.01,0.00013524,2]
[401405100,1768186908109,1779.83070547,0.00013524,2]
[401405101,1768186919010,241.16375363,0.00013524,2]
[401405102,1768186926316,1190.30912272,0.000273,120]
[401405103,1768186927325,241.16375363,0.00013524,2]
[401405104,1768186935930,200.0,0.00013042,2]
[401405105,1768186967365,9800.01,0.00013142,2]
[401405106,1768186967388,7900.06,0.00013142,2]
[401405108,1768186978088,538.21,0.00013038,2]
[401405109,1768186988778,1561.74,7.945e-05,2]
[401405110,1768186988801,1615.901373,7.945e-05,2]
[401405111,1768186990339,-354.33775068,0.000215,60]
[401405112,1768186990857,166.99769429,0.0001345,2]
[401405113,1768186990894,500.0,0.0001345,2]
[401405114,1768186990963,150.0,0.0001345,2]
[401405115,1768186991243,500.0,0.00013505,2]
[401405116,1768186991458,500.0,0.0001356,2]
[401405117,1768186991781,151.53770348,0.0001345,2]
[401405118,1768186992127,500.0,0.0001345,2]
[401405119,1768186992324,500.0,0.00013505,2]
[401405120,1768186992765,500.0,0.0001356,2]
[401405121,1768186992886,150.0,0.0001345,2]
[401405122,1768186993088,150.0,0.00013505,2]
[401405123,1768186993175,150.0,0.0001356,2]
[401405124,1768186993697,500.0,0.0001345,2]
[401405125,1768186993878,500.0,0.00013505,2]
[401405126,1768186994075,500.0,0.0001356,2]
[401405127,1768187008747,161.2772,0.00013513,2]
[401405128,1768187014934,2804.29602923,0.00013524,2]
[401405129,1768187014960,9752.20128007,0.00013524,2]
[401405130,1768187061659,247.80871993,0.00013403,2]
[401405131,1768187061681,252.19128007,0.00013403,2]
[401405132,1768187061835,500.0,0.00013458,2]
[401405133,1768187061914,150.0,0.00013403,2]
[401405134,1768187062010,500.0,0.00013513,2]
[401405135,1768187062083,150.0,0.00013458,2]
[401405136,1768187062120,150.0,0.00013403,2]
[401405137,1768187062170,150.0,0.00013403,2]
[401405138,1768187062211,500.0,0.00013567,2]
[401405139,1768187062268,150.0,0.00013458,2]
[401405140,1768187062337,7497.81871993,0.00013524,2]
[401405141,1768187062362,1065.86316044,0.00013524,2]
[401405142,1768187062407,150.0,0.00013458,2]
[401405143,1768187062490,150.0,0.00013513,2]
[401405144,1768187062533,150.0,0.00013513,2]
[401405145,1768187062674,190.19225777,0.00013567,2]
[401405146,1768187062738,210.45876453,0.00013567,2]
[401405147,1768187062884,150.0,0.00013403,2]
[401405148,1768187063991,500.0,0.00013403,2]
[401405149,1768187064170,500.0,0.00013403,2]
[401405150,1768187064208,500.0,0.00013458,2]
[401405151,1768187064326,500.0,0.00013458,2]
[401405152,1768187064366,500.0,0.00013513,2]
[401405153,1768187065381,500.0,0.00013403,2]
[401405154,1768187065430,500.0,0.00013567,2]
[401405155,1768187065472,500.0,0.00013458,2]
[401405156,1768187065507,500.0,0.00013403,2]
[401405157,1768187065541,500.0,0.00013513,2]
[401405158,1768187065640,500.0,0.00013513,2]
[401405159,1768187065676,500.0,0.00013458,2]
[401405160,1768187065743,500.0,0.00013567,2]
[401405161,1768187065792,500.0,0.00013513,2]
[401405162,1768187065840,500.0,0.00013567,2]
[401405163,1768187065913,500.0,0.00013567,2]
[401405164,1768187066013,83.49581726,0.00013403,2]
[401405165,1768187066036,66.50418274,0.00013403,2]
[401405166,1768187066264,150.0,0.00013403,2]
[401405167,1768187069280,227.81195608,0.00013524,2]
[401405168,1768187078761,227.81195608,0.00013525,2]
[401405169,1768187081901,1896.79,0.00012733,2]
[401405170,1768187100765,325.267081,0.00013542,2]
[401405172,1768187178456,500.0,0.00013403,2]
[401405173,1768187178635,500.0,0.00013458,2]
[401405174,1768187178818,500.0,0.00013513,2]
[401405175,1768187178875,202.33789897,0.00013403,2]
[401405176,1768187178981,387.1370207,0.00013567,2]
[401405177,1768187179278,1105.0,0.00013403,2]
[401405178,1768187179454,1105.0,0.00013458,2]
[401405179,1768187179623,1105.0,0.00013513,2]
[401405180,1768187179792,1105.0,0.00013567,2]
[401405181,1768187225457,170.85896706,0.00013525,2]
[401405182,1768187239129,-300.0,0.0001361,2]
[401405183,1768187239150,-278.57768358,0.0001361,2]
[401405184,1768187241077,-921.42231642,0.0001361,2]
[401405185,1768187241099,-300.0,0.0001361,2]
[401405186,1768187241119,-46.02062082,0.0001361,2]
[401405187,1768187251946,3800.0,0.000139,5]
[401405189,1768187261167,423.41969199,0.000225,120]
[401405190,1768187273890,166.66,0.00013115,2]
[401405192,1768187274684,-233.47671862,0.0001361,2]
[401405193,1768187274707,-284.65697782,0.0001361,2]
[401405194,1768187276958,-167.77555432,0.0001361,2]
[401405195,1768187278718,-47.56746786,0.0001361,2]
[401405196,1768187278739,-149.29469263,0.0001361,2]
[401405197,1768187293405,170.858967,0.00013525,2]
[401405198,1768187296315,500.0,0.00013403,2]
[401405199,1768187296486,500.0,0.00013458,2]
[401405200,1768187296674,591.50063877,0.00013513,2]
[401405201,1768187296887,500.0,0.00013403,2]
[401405202,1768187296922,500.0,0.00013403,2]
[401405203,1768187296979,150.0,0.00013403,2]
[401405204,1768187297054,500.0,0.00013403,2]
[401405205,1768187297087,500.0,0.00013458,2]
[401405206,1768187297132,500.0,0.00013458,2]
[401405207,1768187297223,566.01384157,0.00013513,2]
[401405208,1768187297257,500.0,0.00013458,2]
[401405209,1768187297651,500.0,0.00013513,2]
[401405210,1768187297706,150.0,0.00013403,2]
[401405211,1768187297741,500.0,0.00013513,2]
[401405212,1768187297780,500.0,0.00013567,2]
[401405213,1768187297848,500.0,0.00013567,2]
[401405214,1768187312126,2204.97655266,0.00013512,2]
[401405215,1768187312152,10000.01,0.00013512,2]
[401405216,1768187312177,10000.01,0.00013512,2]
[401405217,1768187312218,10000.01,0.00013512,2]
[401405218,1768187312243,10000.01,0.00013512,2]
[401405219,1768187312272,10000.01,0.00013512,2]
[401405220,1768187312297,10000.01,0.00013512,2]
[401405221,1768187312322,10000.01,0.00013512,2]
[401405222,1768187312349,10000.01,0.00013512,2]
[401405223,1768187312374,10000.01,0.00013512,2]
[401405224,1768187342859,-166.66,0.00012389,2]
[401405225,1768187342888,-166.66,0.0001265,2]
[401405226,1768187342916,-166.66,0.00012911,2]
[401405227,1768187342943,-166.66,0.00013172,2]
[401405228,1768187342970,-166.66,0.00013433,2]
[401405229,1768187342998,-300.0,0.00013511,2]
[401405230,1768187343025,-300.0,0.00013511,2]
[401405231,1768187343052,-233.0,0.00013511,2]
[401405232,1768187343698,-150.0,0.00013511,2]
[401405234,1768187373106,-385.998158,0.00013444,2]
[401405235,1768187374777,-1157.02328977,0.00013512,2]
[401405237,1768187387480,-10000.01,0.00013512,2]
[401405238,1768187388543,-10000.01,0.00013512,2]
[401405239,1768187393224,-10000.01,0.00013512,2]
[401405240,1768187393845,-10000.01,0.00013512,2]
[401405241,1768187393860,-10000.01,0.00013512,2]
[401405242,1768187393884,-10000.01,0.00013512,2]
[401405243,1768187394093,-10000.01,0.00013512,2]
[401405244,1768187394240,-10000.01,0.00013512,2]
[401405245,1768187394373,-10000.01,0.00013512,2]
[401405246,1768187394494,-10000.01,0.00013512,2]
[401405249,1768187432086,-500.0,0.00013403,2]
[401405250,1768187432096,-851.14592439,0.00013416,2]